fUST/lending_fUST_20251129
["ID","MTS","AMOUNT","RATE_DAILY","PERIOD"]
[395044780,1764372548895,-851.96476918,0.00013893,2]
[395044781,1764372548920,-851.96476918,0.00013893,2]
[395044782,1764372548945,-851.96476918,0.00013893,2]
[395044783,1764372548970,-851.96476918,0.00013893,2]
[395044784,1764372548994,-851.96476918,0.00013893,2]
[395044785,1764372549018,-851.96476918,0.00013893,2]
[395044786,1764372549042,-851.96476918,0.00013893,2]
[395044787,1764372549067,-851.96476918,0.00013893,2]
[395044788,1764372549093,-851.96476918,0.00013893,2]
[395044789,1764372549117,-851.96476918,0.00013893,2]
[395044790,1764372549141,-851.96476918,0.00013893,2]
[395044791,1764372549165,-851.96476918,0.00013893,2]
[395044792,1764372549188,-851.96476918,0.00013893,2]
[395044793,1764372549212,-851.96476918,0.00013893,2]
[395044794,1764372549235,-851.96476918,0.00013893,2]
[395044795,1764372549258,-851.96476918,0.00013893,2]
[395044796,1764372549281,-851.96476918,0.00013893,2]
[395044797,1764372549304,-851.96476918,0.00013893,2]
[395044798,1764372549327,-851.96476918,0.00013893,2]
[395044799,1764372549351,-834.92547379,0.00013893,2]
[395044800,1764372549377,-834.92547379,0.00013893,2]
[395044801,1764372549400,-834.92547379,0.00013893,2]
[395044802,1764372549425,-834.92547379,0.00013893,2]
[395044803,1764372549450,-834.92547379,0.00013893,2]
[395044804,1764372549474,-834.92547379,0.00013893,2]
[395044805,1764372549499,-834.92547379,0.00013893,2]
[395044806,1764372549524,-834.92547379,0.00013893,2]
[395044807,1764372549548,-834.92547379,0.00013893,2]
[395044808,1764372549571,-834.92547379,0.00013893,2]
[395044809,1764372549594,-834.92547379,0.00013893,2]
[395044810,1764372549618,-834.92547379,0.00013893,2]
[395044811,1764372549642,-834.92547379,0.00013893,2]
[395044812,1764372549666,-834.92547379,0.00013893,2]
[395044813,1764372549689,-834.92547379,0.00013893,2]
[395044814,1764372549712,-834.92547379,0.00013893,2]
[395044815,1764372549737,-834.92547379,0.00013893,2]
[395044816,1764372549760,-834.92547379,0.00013893,2]
[395044817,1764372549784,-834.92547379,0.00013893,2]
[395044818,1764372549809,-834.92547379,0.00013893,2]
[395044819,1764372549835,-834.92547379,0.00013893,2]
[395044820,1764372549859,-491.57865499,0.00013893,2]
[395044821,1764372553114,-343.3468188,0.00013893,2]
[395044822,1764372553140,-834.92547379,0.00013893,2]
[395044823,1764372553164,-634.45658454,0.00013893,2]
[395044824,1764372558621,-2424.4628317,0.00013893,2]
[395044825,1764372558649,-200.46888925,0.00013893,2]
[395044826,1764372558675,-175.68403639,0.00013893,2]
[395044827,1764372566090,-2424.4628317,0.00013754,2]
[395044828,1764372566115,-659.2414374,0.00013893,2]
[395044829,1764372566141,-834.92547379,0.00013893,2]
[395044830,1764372566166,-800.86930315,0.00013893,2]
[395044831,1764372566191,-800.86930315,0.00013893,2]
[395044832,1764372566216,-800.86930315,0.00013893,2]
[395044833,1764372566241,-800.86930315,0.00013893,2]
[395044834,1764372566266,-800.86930315,0.00013893,2]
[395044835,1764372566292,-800.86930315,0.00013893,2]
[395044836,1764372566318,-800.86930315,0.00013893,2]
[395044837,1764372566342,-800.86930315,0.00013893,2]
[395044838,1764372566365,-800.86930315,0.00013893,2]
[395044839,1764372566390,-800.86930315,0.00013893,2]
[395044840,1764372566414,-800.86930315,0.00013893,2]
[395044841,1764372566438,-800.86930315,0.00013893,2]
[395044842,1764372566462,-800.86930315,0.00013893,2]
[395044843,1764372566486,-800.86930315,0.00013893,2]
[395044844,1764372566510,-800.86930315,0.00013893,2]
[395044845,1764372566534,-800.86930315,0.00013893,2]
[395044846,1764372566559,-800.86930315,0.00013893,2]
[395044847,1764372566579,-500.0,0.00013894,2]
[395044848,1764372566599,-282.40597178,0.00013894,2]
[395044849,1764372566621,-500.0,0.00013894,2]
[395044850,1764372566641,-500.0,0.00013894,2]
[395044851,1764372566660,-165.84953969,0.00013894,2]
[395044852,1764372566680,-500.0,0.00013894,2]
[395044853,1764372566700,-48586.72039462,0.00013895,2]
[395044854,1764372567102,-1413.27960538,0.00013895,2]
[395044855,1764372567124,-1925.286086,0.00013895,2]
[395044856,1764372567143,-1925.286086,0.00013895,2]
[395044857,1764372567162,-1925.286086,0.00013895,2]
[395044858,1764372567181,-1925.286086,0.00013895,2]
[395044859,1764372567200,-1697.23586601,0.00013895,2]
[395044860,1764372573088,-228.05021999,0.00013895,2]
[395044861,1764372573109,-1925.286086,0.00013895,2]
[395044862,1764372573129,-1925.286086,0.00013895,2]
[395044863,1764372573149,-1925.286086,0.00013895,2]
[395044864,1764372573169,-151.290694,0.00013895,2]
[395044865,1764372573189,-153.938257,0.00013895,2]
[395044866,1764372573208,-1294.744509,0.00013895,2]
[395044867,1764372573228,-1294.744509,0.00013895,2]
[395044868,1764372573248,-1294.744509,0.00013895,2]
[395044869,1764372573268,-1294.744509,0.00013895,2]
[395044870,1764372573287,-500.0,0.00013895,2]
[395044871,1764372573307,-288.217154,0.00013896,2]
[395044872,1764372573326,-288.217154,0.00013896,2]
[395044873,1764372573346,-288.217154,0.00013896,2]
[395044874,1764372573367,-288.217154,0.00013896,2]
[395044875,1764372573386,-1925.286086,0.00013896,2]
[395044876,1764372573405,-1925.286086,0.00013896,2]
[395044877,1764372573425,-1925.286086,0.00013896,2]
[395044878,1764372573444,-1925.286086,0.00013896,2]
[395044879,1764372573468,-1294.744509,0.00013896,2]
[395044880,1764372573487,-1294.744509,0.00013896,2]
[395044881,1764372573510,-1294.744509,0.00013896,2]
[395044882,1764372573529,-1294.744509,0.00013896,2]
[395044883,1764372573548,-425.06323742,0.00014169,2]
[395044884,1764372573889,-74.93676258,0.00014169,2]
[395044885,1764372573909,-398.87149065,0.00014443,2]
[395044886,1764372573930,-353.59244258,0.00014497,2]
[395044887,1764372573952,-500.0,0.00014533,2]
[395044888,1764372573972,-194.72792766,0.00014538,2]
[395044889,1764372573991,-330.0,0.00014692,2]
[395044890,1764372582730,500.0,0.00014675,2]
[395044891,1764372585896,500.0,0.00013893,2]
[395044892,1764372585932,500.0,0.00013893,2]
[395044893,1764372585968,500.0,0.00013893,2]
[395044895,1764372590819,750.0,0.00014367,2]
[395044896,1764372602709,1000.0,0.00013699,2]
[395044897,1764372603088,1000.0,0.00013699,2]
[395044898,1764372603537,1000.0,0.00013699,2]
[395044899,1764372603974,1000.0,0.00013699,2]
[395044900,1764372604329,343.8821,0.00013699,2]
[395044901,1764372605375,500.0,0.00014675,2]
[395044902,1764372620520,194.72792766,0.00013887,2]
[395044903,1764372621119,201.93286099,0.00014435,2]
[395044904,1764372628048,773.0,0.00014675,2]
[395044957,1764372632218,-500.0,0.00014823,2]
[395044959,1764372632227,-273.0,0.00014823,2]
[395044961,1764372632237,-384.71472978,0.00014835,2]
[395044964,1764372632248,-500.0,0.00014851,2]
[395044966,1764372632257,-209.40437684,0.00014983,2]
[395044968,1764372632266,-428.17693612,0.00015,2]
[395044970,1764372632275,-151.0,0.00015068,2]
[395044972,1764372632284,-151.0,0.00015068,2]
[395044973,1764372632293,-151.0,0.00015068,2]
[395044975,1764372632303,-112.04796626,0.00015068,2]
[395045047,1764372638140,-38.95203374,0.00015068,2]
[395045048,1764372638150,-151.0,0.00015068,2]
[395045049,1764372638160,-151.0,0.00015068,2]
[395045050,1764372638169,-151.0,0.00015068,2]
[395045051,1764372638179,-8.04796626,0.00015068,2]
[395045052,1764372638191,-142.95203374,0.00015068,2]
[395045053,1764372638200,-151.0,0.00015068,2]
[395045054,1764372638210,-800.0,0.00015068,2]
[395045055,1764372638219,-2033.8174509,0.0001523,2]
[395045056,1764372638228,-500.0,0.00015374,2]
[395045057,1764372638238,-195.27686796,0.0001547,2]
[395045058,1764372638247,-2016.72522981,0.0001547,2]
[395045059,1764372638256,-571.55606638,0.0001547,2]
[395045060,1764372638265,-172.79557227,0.0001547,2]
[395045061,1764372638275,-501.13199368,0.0001547,2]
[395045062,1764372638284,-251.58953217,0.0001547,2]
[395045063,1764372638293,-504.00305312,0.0001547,2]
[395045064,1764372638303,-229.84459823,0.0001547,2]
[395045065,1764372638313,-666.0,0.0001547,2]
[395045066,1764372638322,-500.0,0.0001547,2]
[395045067,1764372638331,-195.26181551,0.0001547,2]
[395045068,1764372638341,-177.0,0.00015494,2]
[395045069,1764372638350,-217.15233878,0.00015531,2]
[395045070,1764372638359,-741.9,0.00015598,3]
[395045071,1764372638369,-370.95,0.00015598,3]
[395045072,1764372638378,-185.48,0.00015598,3]
[395045073,1764372638387,-556.45,0.00015598,3]
[395045074,1764372638453,-151.0,0.000156,2]
[395045075,1764372638463,-151.0,0.000156,2]
[395045076,1764372638473,-151.0,0.000156,2]
[395045077,1764372638482,-151.0,0.000156,2]
[395045078,1764372638492,-151.0,0.000156,2]
[395045079,1764372638501,-151.0,0.000156,2]
[395045080,1764372638511,-0.02476619,0.000156,2]
[395045081,1764372639010,-150.97523381,0.000156,2]
[395045082,1764372639020,-151.0,0.000156,2]
[395045083,1764372639029,-151.0,0.000156,2]
[395045084,1764372639038,-200.0,0.00015607,2]
[395045085,1764372639047,-200.0,0.00015607,2]
[395045086,1764372639057,-160.0,0.00015607,2]
[395045087,1764372639066,-315.4019863,0.00015607,2]
[395045088,1764372639075,-500.0,0.00015607,2]
[395045089,1764372639084,-197.68418024,0.00015607,2]
[395045090,1764372639093,-500.0,0.00015607,2]
[395045091,1764372639102,-516.09467779,0.00015607,2]
[395045092,1764372639111,-500.0,0.00015607,2]
[395045093,1764372639120,-500.0,0.00015607,2]
[395045094,1764372639129,-500.0,0.00015607,2]
[395045095,1764372639141,-500.0,0.00015607,2]
[395045096,1764372639150,-500.0,0.00015607,2]
[395045097,1764372639159,-500.0,0.00015607,2]
[395045098,1764372639168,-500.0,0.00015607,2]
[395045099,1764372639178,-500.0,0.00015607,2]
[395045100,1764372639187,-264.93135695,0.00015607,2]
[395045101,1764372639196,-500.0,0.00015607,2]
[395045102,1764372639206,-500.0,0.00015607,2]
[395045103,1764372639215,-500.0,0.00015607,2]
[395045104,1764372639224,-500.0,0.00015607,2]
[395045105,1764372639234,-500.0,0.00015607,2]
[395045106,1764372639243,-500.0,0.00015607,2]
[395045107,1764372639252,-500.0,0.00015607,2]
[395045108,1764372639261,-500.0,0.00015607,2]
[395045109,1764372639271,-890000.0,0.00015608,2]
[395045110,1764372639280,-151.0,0.00015608,2]
[395045111,1764372639289,-288.217154,0.00015608,2]
[395045112,1764372639299,-288.217154,0.00015608,2]
[395045113,1764372639308,-288.217154,0.00015608,2]
[395045114,1764372639317,-288.217154,0.00015608,2]
[395045115,1764372639326,-151.0,0.00015608,2]
[395045116,1764372639335,-1925.286086,0.00015608,2]
[395045117,1764372639344,-151.0,0.00015608,2]
[395045118,1764372639354,-1925.286086,0.00015608,2]
[395045119,1764372639363,-196.263495,0.00015608,2]
[395045120,1764372639372,-1925.286086,0.00015608,2]
[395045121,1764372639381,-1925.286086,0.00015608,2]
[395045122,1764372639390,-1294.744509,0.00015608,2]
[395045123,1764372639399,-1294.744509,0.00015608,2]
[395045124,1764372639410,-1294.744509,0.00015608,2]
[395045125,1764372639419,-1294.744509,0.00015608,2]
[395045126,1764372639429,-500.0,0.00015616,2]
[395045127,1764372639439,-297.02729361,0.00015673,2]
[395045128,1764372639448,-500.0,0.00015673,2]
[395045129,1764372639458,-500.0,0.00015673,2]
[395045130,1764372639467,-500.0,0.00015673,2]
[395045131,1764372639476,-500.0,0.00015673,2]
[395045132,1764372639485,-500.0,0.00015673,2]
[395045133,1764372639494,-500.3601762,0.00015673,2]
[395045134,1764372639504,-500.2392283,0.00015673,2]
[395045135,1764372639514,-500.0,0.00015673,2]
[395045136,1764372639524,-501.7254418,0.00015673,2]
[395045137,1764372639533,-258.86741491,0.00015673,2]
[395045138,1764372639543,-494.66161662,0.00015673,2]
[395045139,1764372639552,-500.0,0.00015673,2]
[395045140,1764372639562,-500.0,0.00015673,2]
[395045141,1764372639571,-500.0,0.00015673,2]
[395045142,1764372639580,-500.0,0.00015673,2]
[395045143,1764372639590,-500.0,0.00015673,2]
[395045144,1764372639599,-500.0,0.00015673,2]
[395045145,1764372639609,-500.0,0.00015673,2]
[395045146,1764372639619,-500.0,0.00015673,2]
[395045147,1764372639628,-500.0,0.00015673,2]
[395045148,1764372639638,-1294.744509,0.00015673,2]
[395045149,1764372639647,-1294.744509,0.00015673,2]
[395045150,1764372639657,-1294.744509,0.00015673,2]
[395045151,1764372639667,-1294.744509,0.00015673,2]
[395045152,1764372639677,-151.0,0.000157,2]
[395045153,1764372639687,-151.0,0.000157,2]
[395045154,1764372639698,-500.0,0.00015708,2]
[395045155,1764372639709,-500.0,0.00015709,2]
[395045156,1764372639719,-500.0,0.00015709,2]
[395045157,1764372639729,-500.0,0.0001571,2]
[395045158,1764372639739,-1320.8,0.0001571,2]
[395045159,1764372639748,-500.0,0.00015711,2]
[395045160,1764372639758,-500.0,0.00015711,2]
[395045161,1764372639767,-1320.8,0.00015711,2]
[395045162,1764372639776,-1320.8,0.00015711,2]
[395045163,1764372639786,-500.0,0.00015712,7]
[395045165,1764372639795,-500.0,0.00015712,7]
[395045166,1764372639804,-500.0,0.00015712,7]
[395045167,1764372639814,-500.0,0.00015712,7]
[395045168,1764372639824,-500.0,0.00015712,7]
[395045169,1764372639833,-500.0,0.00015712,7]
[395045170,1764372639842,-500.0,0.00015712,7]
[395045171,1764372639854,-500.0,0.00015712,7]
[395045172,1764372639864,-500.0,0.00015712,7]
[395045173,1764372639873,-500.0,0.00015712,7]
[395045174,1764372639882,-500.0,0.00015712,7]
[395045175,1764372639891,-500.0,0.00015712,7]
[395045176,1764372639902,-500.0,0.00015712,7]
[395045177,1764372639911,-500.0,0.00015712,7]
[395045178,1764372639920,-500.0,0.00015712,7]
[395045179,1764372639929,-500.0,0.00015712,7]
[395045180,1764372639938,-500.0,0.00015712,7]
[395045181,1764372639946,-500.0,0.00015712,7]
[395045182,1764372639955,-500.0,0.00015712,7]
[395045184,1764372639964,-500.0,0.00015712,7]
[395045185,1764372639974,-500.0,0.00015712,7]
[395045186,1764372639983,-500.0,0.00015712,7]
[395045187,1764372639991,-500.0,0.00015712,7]
[395045188,1764372640000,-500.0,0.00015712,7]
[395045189,1764372640010,-500.0,0.00015712,7]
[395045190,1764372640019,-500.0,0.00015712,7]
[395045191,1764372640028,-500.0,0.00015712,7]
[395045192,1764372640037,-500.0,0.00015712,7]
[395045193,1764372640047,-500.0,0.00015712,7]
[395045194,1764372640056,-500.0,0.00015712,7]
[395045195,1764372640066,-500.0,0.00015712,7]
[395045196,1764372640076,-500.0,0.00015712,7]
[395045197,1764372640085,-500.0,0.00015712,7]
[395045198,1764372640094,-500.0,0.00015712,7]
[395045199,1764372640104,-500.0,0.00015712,7]
[395045200,1764372640113,-500.0,0.00015712,7]
[395045201,1764372640122,-500.0,0.00015712,7]
[395045202,1764372640132,-500.0,0.00015712,7]
[395045203,1764372640141,-500.0,0.00015712,7]
[395045204,1764372640150,-500.0,0.00015712,7]
[395045205,1764372640160,-500.0,0.00015712,7]
[395045207,1764372640169,-500.0,0.00015712,7]
[395045208,1764372640178,-500.0,0.00015712,7]
[395045209,1764372640187,-500.0,0.00015712,7]
[395045210,1764372640197,-500.0,0.00015712,7]
[395045211,1764372640206,-500.0,0.00015712,7]
[395045212,1764372640215,-500.0,0.00015712,7]
[395045213,1764372640224,-500.0,0.00015712,7]
[395045214,1764372640233,-500.0,0.00015712,7]
[395045215,1764372640242,-500.0,0.00015712,7]
[395045216,1764372640251,-500.0,0.00015712,7]
[395045217,1764372640260,-500.0,0.00015712,7]
[395045218,1764372640269,-500.0,0.00015712,7]
[395045219,1764372640277,-500.0,0.00015712,7]
[395045220,1764372640286,-500.0,0.00015712,7]
[395045221,1764372640295,-500.0,0.00015712,7]
[395045222,1764372640304,-500.0,0.00015712,7]
[395045223,1764372640313,-500.0,0.00015712,7]
[395045224,1764372640321,-500.0,0.00015712,7]
[395045225,1764372640331,-500.0,0.00015712,7]
[395045226,1764372640339,-500.0,0.00015712,7]
[395045227,1764372640348,-500.0,0.00015712,7]
[395045228,1764372640357,-500.0,0.00015712,7]
[395045229,1764372640366,-500.0,0.00015712,7]
[395045230,1764372640375,-500.0,0.00015712,7]
[395045231,1764372640384,-500.0,0.00015712,7]
[395045232,1764372640393,-500.0,0.00015712,7]
[395045233,1764372640402,-500.0,0.00015712,7]
[395045234,1764372640410,-500.0,0.00015712,7]
[395045235,1764372640419,-500.0,0.00015712,7]
[395045236,1764372640428,-500.0,0.00015712,7]
[395045237,1764372640437,-500.0,0.00015712,7]
[395045238,1764372640446,-500.0,0.00015712,7]
[395045239,1764372640454,-500.0,0.00015712,7]
[395045240,1764372640463,-500.0,0.00015712,7]
[395045241,1764372640472,-500.0,0.00015712,7]
[395045242,1764372640480,-539.74,0.00015712,7]
[395045243,1764372640489,-288.217154,0.00015712,2]
[395045244,1764372640498,-288.217154,0.00015712,2]
[395045245,1764372640507,-288.217154,0.00015712,2]
[395045246,1764372640516,-288.217154,0.00015712,2]
[395045247,1764372640524,-288.217154,0.00015712,2]
[395045248,1764372640533,-288.217154,0.00015712,2]
[395045249,1764372640546,-288.217154,0.00015712,2]
[395045251,1764372640555,-288.217154,0.00015712,2]
[395045252,1764372640564,-151.0,0.00015712,2]
[395045253,1764372640573,-1925.286086,0.00015712,2]
[395045254,1764372640582,-151.0,0.00015712,2]
[395045255,1764372640591,-1925.286086,0.00015712,2]
[395045256,1764372640600,-1925.286086,0.00015712,2]
[395045257,1764372640609,-1925.286076,0.00015712,2]
[395045258,1764372640618,-1294.744509,0.00015712,2]
[395045259,1764372640627,-1294.744509,0.00015712,2]
[395045260,1764372640636,-1294.744509,0.00015712,2]
[395045261,1764372640646,-1294.744509,0.00015712,2]
[395045262,1764372640655,-151.0,0.000158,2]
[395045263,1764372640664,-1320.8,0.00015865,2]
[395045264,1764372640673,-151.0,0.000159,2]
[395045265,1764372640683,-151.0,0.000159,2]
[395045266,1764372640692,-151.0,0.00016,2]
[395045267,1764372640701,-179.80221756,0.00016,2]
[395045268,1764372640710,-666.0,0.00016018,2]
[395045269,1764372640719,-500.0,0.00016025,2]
[395045270,1764372640728,-500.0,0.00016025,2]
[395045271,1764372640736,-642.7036594,0.00016025,2]
[395045272,1764372640745,-1320.8,0.00016025,2]
[395045273,1764372640754,-1320.8,0.00016025,2]
[395045274,1764372640763,-1320.8,0.00016025,2]
[395045275,1764372640771,-1320.8,0.00016025,2]
[395045276,1764372640780,-1320.8,0.00016025,2]
[395045277,1764372640789,-1320.8,0.00016025,2]
[395045278,1764372640798,-1320.8,0.00016025,2]
[395045279,1764372640807,-1320.8,0.00016025,2]
[395045280,1764372640816,-1320.8,0.00016025,2]
[395045281,1764372640825,-1320.8,0.00016025,2]
[395045282,1764372640833,-1320.8,0.00016025,2]
[395045283,1764372640842,-1320.8,0.00016025,2]
[395045284,1764372640853,-1320.8,0.00016025,2]
[395045285,1764372640863,-1320.8,0.00016025,2]
[395045286,1764372640872,-1320.8,0.00016025,2]
[395045287,1764372640884,-1320.8,0.00016025,2]
[395045288,1764372640893,-1320.8,0.00016025,2]
[395045289,1764372640902,-1320.8,0.00016025,2]
[395045290,1764372640911,-1320.8,0.00016025,2]
[395045291,1764372640920,-1320.80391919,0.00016025,2]
[395045292,1764372640928,-200.0,0.00016025,2]
[395045293,1764372640938,-500.0,0.00016026,2]
[395045294,1764372640946,-500.0,0.00016026,2]
[395045295,1764372640955,-500.0,0.00016026,2]
[395045296,1764372640964,-500.0,0.00016026,2]
[395045297,1764372640973,-500.0,0.00016026,2]
[395045298,1764372640982,-500.0,0.00016026,2]
[395045299,1764372640991,-500.0,0.00016026,2]
[395045300,1764372641000,-349.12473722,0.00016026,2]
[395045301,1764372641009,-192.359,0.00016055,2]
[395045302,1764372641020,-506.8521704,0.00016073,2]
[395045303,1764372641029,-500.0,0.00016073,2]
[395045304,1764372641038,-225.18697532,0.00016079,2]
[395045305,1764372641048,-151.0,0.000161,2]
[395045306,1764372641057,-151.0,0.000161,2]
[395045307,1764372641066,-500.0,0.0001613,2]
[395045308,1764372641076,-160.0,0.00016141,3]
[395045309,1764372641086,-785.60540694,0.00016141,5]
[395045310,1764372641095,-359.73259975,0.00016161,2]
[395045311,1764372641105,-1600.0,0.00016164,2]
[395045312,1764372641114,-988.0,0.00016182,2]
[395045313,1764372641123,-2117.622,0.00016182,2]
[395045314,1764372641133,-500.000001,0.000162,2]
[395045315,1764372641142,-151.0,0.000162,2]
[395045316,1764372641151,-500.0,0.00016217,2]
[395045317,1764372641160,-500.0,0.00016217,2]
[395045318,1764372641169,-500.0,0.00016217,2]
[395045319,1764372641178,-500.0,0.00016217,2]
[395045320,1764372641189,-500.0,0.00016217,2]
[395045321,1764372641198,-500.0,0.00016217,2]
[395045322,1764372641207,-500.0,0.00016217,2]
[395045323,1764372641217,-500.0,0.00016217,2]
[395045324,1764372641229,-500.0,0.00016217,2]
[395045325,1764372641238,-376.0,0.00016217,2]
[395045326,1764372641247,-288.217154,0.00016217,2]
[395045327,1764372641257,-288.217154,0.00016217,2]
[395045328,1764372641266,-288.217154,0.00016217,2]
[395045329,1764372641276,-288.217155,0.00016217,2]
[395045330,1764372641286,-500.0,0.00016218,2]
[395045331,1764372641296,-507.98101226,0.00016221,2]
[395045332,1764372641306,-1000.0,0.00016221,2]
[395045333,1764372641315,-1000.0,0.00016221,2]
[395045334,1764372641325,-1000.0,0.00016221,2]
[395045335,1764372641335,-1000.0,0.00016221,2]
[395045336,1764372641345,-1000.0,0.00016221,2]
[395045337,1764372641354,-1000.0,0.00016221,2]
[395045338,1764372641364,-166.22185447,0.00016221,2]
[395045339,1764372641373,-988.74629729,0.00016221,2]
[395045340,1764372641383,-1000.0,0.00016221,2]
[395045341,1764372641392,-1000.0,0.00016221,2]
[395045342,1764372641401,-500.0,0.00016221,2]
[395045343,1764372641411,-1000.0,0.00016221,2]
[395045344,1764372641420,-1000.0,0.00016221,2]
[395045345,1764372641429,-1000.0,0.00016221,2]
[395045346,1764372641438,-774.1,0.00016262,2]
[395045347,1764372641447,-151.0,0.000163,2]
[395045348,1764372641457,-151.0,0.000163,2]
[395045349,1764372641467,-151.0,0.00016328,2]
[395045350,1764372641476,-151.0,0.00016328,2]
[395045351,1764372641485,-205.33244124,0.00016328,2]
[395045352,1764372641494,-151.0,0.00016328,2]
[395045353,1764372641504,-500.0,0.00016328,2]
[395045354,1764372641514,-151.0,0.00016328,2]
[395045355,1764372641523,-151.0,0.00016328,2]
[395045356,1764372641533,-7447.72236075,0.00016338,2]
[395045357,1764372641541,-466.64786516,0.00016378,2]
[395045358,1764372641551,-151.0,0.000164,2]
[395045359,1764372641560,-151.0,0.000164,2]
[395045360,1764372641570,-200.0,0.00016437,2]
[395045361,1764372641579,-200.0,0.00016437,2]
[395045362,1764372641589,-200.0,0.00016437,2]
[395045363,1764372641599,-160.0,0.00016437,2]
[395045364,1764372641608,-227.15770958,0.00016438,2]
[395045365,1764372641618,-500.0,0.00016438,2]
[395045366,1764372641627,-500.0,0.00016438,2]
[395045367,1764372641637,-500.0,0.00016438,2]
[395045368,1764372641647,-500.0,0.00016438,2]
[395045369,1764372641656,-500.0,0.00016438,2]
[395045370,1764372641666,-500.0,0.00016438,2]
[395045371,1764372641675,-288.6160492,0.00016438,2]
[395045372,1764372641685,-591.75454994,0.00016438,2]
[395045373,1764372641695,-500.0,0.00016438,2]
[395045374,1764372641705,-183.53271699,0.00016438,2]
[395045375,1764372641714,-500.0,0.00016438,2]
[395045376,1764372641723,-18492.26,0.00016438,2]
[395045377,1764372641734,-500.0,0.00016438,2]
[395045378,1764372641744,-500.0,0.00016438,2]
[395045379,1764372641753,-500.0,0.00016438,2]
[395045380,1764372641762,-500.0,0.00016438,2]
[395045381,1764372641771,-500.0,0.00016438,2]
[395045382,1764372641780,-759.29,0.00016438,2]
[395045383,1764372641789,-500.0,0.00016438,2]
[395045384,1764372641798,-500.0,0.00016438,2]
[395045385,1764372641807,-500.0,0.00016438,2]
[395045386,1764372641816,-500.0,0.00016438,2]
[395045387,1764372641825,-528.19,0.00016438,2]
[395045388,1764372641834,-500.0,0.00016438,2]
[395045389,1764372641844,-500.0,0.00016438,2]
[395045390,1764372641856,-500.0,0.00016438,2]
[395045391,1764372641865,-500.0,0.00016438,2]
[395045392,1764372641874,-500.0,0.00016438,2]
[395045393,1764372641883,-500.0,0.00016438,2]
[395045394,1764372641903,-500.0,0.00016438,2]
[395045395,1764372641913,-500.0,0.00016438,2]
[395045396,1764372641923,-500.0,0.00016438,2]
[395045397,1764372641934,-500.0,0.00016438,2]
[395045398,1764372641943,-668.24,0.00016438,2]
[395045399,1764372641953,-500.0,0.00016438,2]
[395045400,1764372641962,-676.39,0.00016438,2]
[395045401,1764372641971,-500.0,0.00016438,2]
[395045402,1764372641981,-500.0,0.00016438,2]
[395045403,1764372641990,-500.0,0.00016438,2]
[395045404,1764372642000,-500.0,0.00016438,2]
[395045405,1764372642009,-513.42322386,0.00016438,2]
[395045406,1764372642019,-500.0,0.00016438,2]
[395045407,1764372642028,-500.0,0.00016438,2]
[395045408,1764372642037,-500.0,0.00016438,2]
[395045409,1764372642047,-500.0,0.00016438,2]
[395045410,1764372642056,-500.0,0.00016438,2]
[395045411,1764372642065,-500.0,0.00016438,2]
[395045412,1764372642075,-500.0,0.00016438,2]
[395045413,1764372642084,-500.0,0.00016438,2]
[395045414,1764372642094,-500.0,0.00016438,2]
[395045415,1764372642103,-500.0,0.00016438,2]
[395045416,1764372642113,-500.0,0.00016438,2]